[Event "*** Titled Tuesday Blitz"]
[Site "Chess.com"]
[Date "2020.05.19"]
[Round "5"]
[White "LostaBet95"]
[Black "Twitch_ElhamBlitz05"]
[Result "0-1"]
[WhiteElo "2551"]
[BlackElo "2760"]
[TimeControl "180+1"]
[EndTime "12:54:46 PDT"]
[Termination "Twitch_ElhamBlitz05 won by resignation"]

1. e4 {[%clk 0:03:00.9]} 1... c6 {[%clk 0:02:59.8]} 2. d4 {[%clk 0:03:00.9]}
2... d5 {[%clk 0:03:00.7]} 3. Nc3 {[%clk 0:03:01.5]} 3... dxe4 {[%clk 0:03:01]}
4. Nxe4 {[%clk 0:03:02.4]} 4... Nf6 {[%clk 0:03:01.6]} 5. Nxf6+ {[%clk
0:03:02.7]} 5... exf6 {[%clk 0:03:02.5]} 6. c3 {[%clk 0:03:03.4]} 6... Bd6
{[%clk 0:03:01.8]} 7. Bd3 {[%clk 0:03:03.8]} 7... O-O {[%clk 0:03:02.4]} 8. Ne2
{[%clk 0:03:04.7]} 8... Re8 {[%clk 0:03:03.3]} 9. Qc2 {[%clk 0:03:05.2]} 9... h5
{[%clk 0:03:03.7]} 10. O-O {[%clk 0:03:05.8]} 10... h4 {[%clk 0:03:03.6]} 11. h3
{[%clk 0:03:06.3]} 11... Nd7 {[%clk 0:03:03]} 12. Be3 {[%clk 0:03:07]} 12... Nf8
{[%clk 0:03:02.8]} 13. c4 {[%clk 0:02:59.6]} 13... Be6 {[%clk 0:03:00.1]} 14.
Rad1 {[%clk 0:02:52.7]} 14... Qd7 {[%clk 0:02:58.8]} 15. Nf4 {[%clk 0:02:46.9]}
15... Rad8 {[%clk 0:02:39.4]} 16. d5 {[%clk 0:02:30.1]} 16... Bxf4 {[%clk
0:02:39]} 17. dxe6 {[%clk 0:02:29.4]} 17... Qc7 {[%clk 0:02:39.6]} 18. exf7+
{[%clk 0:02:01.9]} 18... Kxf7 {[%clk 0:02:40.5]} 19. Bxf4 {[%clk 0:01:57.7]}
19... Qxf4 {[%clk 0:02:38.8]} 20. Rfe1 {[%clk 0:01:51.2]} 20... g5 {[%clk
0:02:06.3]} 21. c5 {[%clk 0:01:47.2]} 21... Kg7 {[%clk 0:01:25.5]} 22. Bc4
{[%clk 0:01:38.5]} 22... Rxe1+ {[%clk 0:01:16.3]} 23. Rxe1 {[%clk 0:01:39.4]}
23... Rd2 {[%clk 0:01:15.7]} 24. Re7+ {[%clk 0:01:23.7]} 24... Kh6 {[%clk
0:01:06.7]} 25. Qe4 {[%clk 0:01:15]} 25... Qxf2+ {[%clk 0:01:02.4]} 0-1

[Event "*** Titled Tuesday Blitz"]
[Site "Chess.com"]
[Date "2020.05.19"]
[Round "5"]
[White "ehrenfeld"]
[Black "archess2"]
[Result "1-0"]
[WhiteElo "2440"]
[BlackElo "2279"]
[TimeControl "180+1"]
[EndTime "12:55:02 PDT"]
[Termination "ehrenfeld won by resignation"]

1. e4 {[%clk 0:03:00.9]} 1... c6 {[%clk 0:02:58.8]} 2. d4 {[%clk 0:03:00.5]}
2... d5 {[%clk 0:02:58.9]} 3. exd5 {[%clk 0:03:00.9]} 3... cxd5 {[%clk
0:02:59.2]} 4. Bd3 {[%clk 0:03:01.3]} 4... Nc6 {[%clk 0:02:59]} 5. c3 {[%clk
0:03:01.7]} 5... Nf6 {[%clk 0:02:58.7]} 6. Bf4 {[%clk 0:03:00.7]} 6... Bg4
{[%clk 0:02:58.7]} 7. Qb3 {[%clk 0:03:01.1]} 7... Na5 {[%clk 0:02:57.1]} 8. Qa4+
{[%clk 0:02:56.6]} 8... Bd7 {[%clk 0:02:55.7]} 9. Qc2 {[%clk 0:02:56]} 9... Nh5
{[%clk 0:02:53.8]} 10. Bg3 {[%clk 0:02:43.4]} 10... Nxg3 {[%clk 0:02:52.8]} 11.
hxg3 {[%clk 0:02:42.7]} 11... h6 {[%clk 0:02:53.1]} 12. Nf3 {[%clk 0:02:40.3]}
12... Nc6 {[%clk 0:02:50.3]} 13. Nbd2 {[%clk 0:02:38.6]} 13... Rc8 {[%clk
0:02:49.9]} 14. Qd1 {[%clk 0:02:28.3]} 14... e6 {[%clk 0:02:48.1]} 15. Qe2
{[%clk 0:02:09.1]} 15... Bd6 {[%clk 0:02:46]} 16. g4 {[%clk 0:02:06]} 16... Qe7
{[%clk 0:02:38]} 17. g5 {[%clk 0:02:05.6]} 17... h5 {[%clk 0:02:37.2]} 18. g6
{[%clk 0:02:05.6]} 18... f6 {[%clk 0:02:35.1]} 19. Nh4 {[%clk 0:01:52.7]} 19...
e5 {[%clk 0:02:33.1]} 20. Nf5 {[%clk 0:01:49.8]} 20... Bxf5 {[%clk 0:02:28.2]}
21. Bxf5 {[%clk 0:01:49.4]} 21... Rd8 {[%clk 0:02:22.3]} 22. Rxh5 {[%clk
0:01:47.1]} 22... Rxh5 {[%clk 0:02:18]} 23. Qxh5 {[%clk 0:01:47.1]} 23... exd4+
{[%clk 0:02:16.9]} 24. Kf1 {[%clk 0:01:47]} 24... dxc3 {[%clk 0:02:16.5]} 25.
Re1 {[%clk 0:01:26.3]} 25... Ne5 {[%clk 0:01:59.5]} 26. bxc3 {[%clk 0:01:20.1]}
26... Qc7 {[%clk 0:01:52.6]} 27. f4 {[%clk 0:01:11.2]} 27... Qxc3 {[%clk
0:01:51.4]} 28. fxe5 {[%clk 0:01:03.3]} 28... Bxe5 {[%clk 0:01:45.9]} 29. Nf3
{[%clk 0:01:03]} 29... Qc4+ {[%clk 0:01:41.2]} 30. Kg1 {[%clk 0:01:01.2]} 30...
Qc5+ {[%clk 0:01:36.4]} 31. Kh1 {[%clk 0:00:56]} 31... Ke7 {[%clk 0:01:34.1]}
32. Nxe5 {[%clk 0:00:53.6]} 32... fxe5 {[%clk 0:01:33.7]} 33. Qg5+ {[%clk
0:00:51.6]} 33... Ke8 {[%clk 0:01:31.6]} 34. Rxe5+ {[%clk 0:00:50.9]} 1-0

[Event "*** Titled Tuesday Blitz"]
[Site "Chess.com"]
[Date "2020.05.19"]
[Round "5"]
[White "HouseOfDurin"]
[Black "Akhayan"]
[Result "0-1"]
[WhiteElo "1984"]
[BlackElo "2297"]
[TimeControl "180+1"]
[EndTime "12:55:14 PDT"]
[Termination "Akhayan won by resignation"]

1. d4 {[%clk 0:03:00.9]} 1... d5 {[%clk 0:02:58.4]} 2. Bg5 {[%clk 0:03:01.2]}
2... Nf6 {[%clk 0:02:52.3]} 3. Bxf6 {[%clk 0:03:01.2]} 3... gxf6 {[%clk
0:02:51]} 4. e3 {[%clk 0:03:01.7]} 4... Bg7 {[%clk 0:02:50.9]} 5. c4 {[%clk
0:03:01.1]} 5... O-O {[%clk 0:02:49]} 6. Nc3 {[%clk 0:03:00.7]} 6... dxc4 {[%clk
0:02:46.1]} 7. Bxc4 {[%clk 0:03:01.6]} 7... c5 {[%clk 0:02:45.5]} 8. Nge2 {[%clk
0:02:58.5]} 8... cxd4 {[%clk 0:02:44.1]} 9. Nxd4 {[%clk 0:02:55.4]} 9... Qc7
{[%clk 0:02:40.1]} 10. Bd3 {[%clk 0:02:27.3]} 10... Nc6 {[%clk 0:02:37.6]} 11.
Qh5 {[%clk 0:02:25.6]} 11... h6 {[%clk 0:02:34.8]} 12. Nf5 {[%clk 0:02:14.8]}
12... Bxf5 {[%clk 0:02:32.8]} 13. Qxf5 {[%clk 0:02:08.4]} 13... Rfd8 {[%clk
0:02:30.9]} 14. Qh7+ {[%clk 0:01:53.2]} 14... Kf8 {[%clk 0:02:29.8]} 15. O-O
{[%clk 0:01:47.3]} 15... e6 {[%clk 0:02:16.3]} 16. Rfd1 {[%clk 0:01:28.4]} 16...
f5 {[%clk 0:02:09.8]} 17. e4 {[%clk 0:01:01.7]} 17... Ne5 {[%clk 0:02:00.9]} 18.
Bc2 {[%clk 0:00:24.8]} 18... Ng4 {[%clk 0:01:53.4]} 19. exf5 {[%clk 0:00:17.3]}
19... Nf6 {[%clk 0:01:45]} 20. Nb5 {[%clk 0:00:08.5]} 20... Qxc2 {[%clk
0:01:32.9]} 21. fxe6 {[%clk 0:00:08.4]} 21... Rxd1+ {[%clk 0:01:28.7]} 0-1

[Event "*** Titled Tuesday Blitz"]
[Site "Chess.com"]
[Date "2020.05.19"]
[Round "5"]
[White "Nikithebest"]
[Black "124chess"]
[Result "0-1"]
[WhiteElo "2446"]
[BlackElo "2751"]
[TimeControl "180+1"]
[EndTime "12:55:18 PDT"]
[Termination "124chess won by resignation"]

1. e4 {[%clk 0:03:00.9]} 1... d6 {[%clk 0:02:59.9]} 2. d4 {[%clk 0:03:00.1]}
2... Nf6 {[%clk 0:03:00.2]} 3. Nc3 {[%clk 0:02:59.1]} 3... e5 {[%clk 0:03:00.8]}
4. Nge2 {[%clk 0:02:58.6]} 4... Be7 {[%clk 0:03:00.3]} 5. g3 {[%clk 0:02:58.4]}
5... O-O {[%clk 0:03:00.8]} 6. Bg2 {[%clk 0:02:58.5]} 6... c6 {[%clk 0:03:01.5]}
7. O-O {[%clk 0:02:57.3]} 7... b5 {[%clk 0:03:01.7]} 8. a3 {[%clk 0:02:57.2]}
8... a5 {[%clk 0:03:01]} 9. h3 {[%clk 0:02:56.6]} 9... Ba6 {[%clk 0:03:01]} 10.
Be3 {[%clk 0:02:55.2]} 10... Nbd7 {[%clk 0:02:50.5]} 11. g4 {[%clk 0:02:53.5]}
11... b4 {[%clk 0:02:47.4]} 12. axb4 {[%clk 0:02:39.5]} 12... axb4 {[%clk
0:02:48.3]} 13. Na4 {[%clk 0:02:39.4]} 13... Bb5 {[%clk 0:02:46.2]} 14. b3
{[%clk 0:02:35.8]} 14... h6 {[%clk 0:02:06.9]} 15. Qd2 {[%clk 0:02:35.7]} 15...
d5 {[%clk 0:02:02.5]} 16. exd5 {[%clk 0:02:26]} 16... Nxd5 {[%clk 0:02:01.7]}
17. dxe5 {[%clk 0:02:07.7]} 17... Nxe5 {[%clk 0:02:01.2]} 18. Bd4 {[%clk
0:02:00.2]} 18... Ng6 {[%clk 0:01:59.3]} 19. Rfe1 {[%clk 0:01:40.1]} 19... Bg5
{[%clk 0:01:56]} 20. Qd1 {[%clk 0:01:35.2]} 20... Ndf4 {[%clk 0:01:55.9]} 21.
Nxf4 {[%clk 0:01:29]} 21... Nxf4 {[%clk 0:01:55.6]} 22. Bb6 {[%clk 0:01:22]}
22... Qb8 {[%clk 0:01:48.2]} 23. Be3 {[%clk 0:01:19.6]} 23... Rd8 {[%clk
0:01:41.3]} 24. Qb1 {[%clk 0:01:19.7]} 24... Bf6 {[%clk 0:01:32]} 25. Ra2 {[%clk
0:01:18.9]} 25... Nxg2 {[%clk 0:01:26]} 26. Kxg2 {[%clk 0:01:18.8]} 26... Qd6
{[%clk 0:01:21.4]} 27. Nc5 {[%clk 0:01:16.9]} 27... Qd5+ {[%clk 0:01:19.5]} 28.
Kg1 {[%clk 0:01:15.1]} 28... Bc3 {[%clk 0:01:17.9]} 29. Rxa8 {[%clk 0:01:12.2]}
29... Rxa8 {[%clk 0:01:17.2]} 30. Rd1 {[%clk 0:01:12.6]} 30... Qf3 {[%clk
0:01:14.8]} 31. Kh2 {[%clk 0:00:54.4]} 31... Be5+ {[%clk 0:01:07.3]} 32. Kg1
{[%clk 0:00:53.7]} 32... Qxh3 {[%clk 0:01:07.9]} 0-1

[Event "*** Titled Tuesday Blitz"]
[Site "Chess.com"]
[Date "2020.05.19"]
[Round "5"]
[White "TudorAnton"]
[Black "Nathan_Filgueiras"]
[Result "1-0"]
[WhiteElo "2491"]
[BlackElo "2324"]
[TimeControl "180+1"]
[EndTime "12:55:18 PDT"]
[Termination "TudorAnton won by checkmate"]

1. d4 {[%clk 0:03:00.9]} 1... Nf6 {[%clk 0:02:59.7]} 2. c4 {[%clk 0:02:59]} 2...
e6 {[%clk 0:02:59.6]} 3. Nc3 {[%clk 0:02:58.6]} 3... Bb4 {[%clk 0:02:59.1]} 4.
Nf3 {[%clk 0:02:57.7]} 4... O-O {[%clk 0:02:58.7]} 5. Bg5 {[%clk 0:02:55.1]}
5... h6 {[%clk 0:02:58.1]} 6. Bh4 {[%clk 0:02:54.4]} 6... d6 {[%clk 0:02:58.1]}
7. Qc2 {[%clk 0:02:52.7]} 7... Nbd7 {[%clk 0:02:55.3]} 8. a3 {[%clk 0:02:50.4]}
8... Bxc3+ {[%clk 0:02:54.8]} 9. Qxc3 {[%clk 0:02:51.3]} 9... g5 {[%clk
0:02:51.2]} 10. Bg3 {[%clk 0:02:49.6]} 10... Ne4 {[%clk 0:02:50.8]} 11. Qc2
{[%clk 0:02:49.4]} 11... f5 {[%clk 0:02:49.4]} 12. e3 {[%clk 0:02:49.6]} 12...
Qe7 {[%clk 0:02:45.8]} 13. Bd3 {[%clk 0:02:49.1]} 13... Ndf6 {[%clk 0:02:44.8]}
14. O-O-O {[%clk 0:02:49]} 14... Bd7 {[%clk 0:02:37.4]} 15. Kb1 {[%clk
0:02:48.3]} 15... a6 {[%clk 0:02:34.5]} 16. Ka1 {[%clk 0:02:47.5]} 16... b5
{[%clk 0:02:32.3]} 17. Nd2 {[%clk 0:02:40.6]} 17... Nxd2 {[%clk 0:02:27.1]} 18.
Rxd2 {[%clk 0:02:40.1]} 18... bxc4 {[%clk 0:02:27.5]} 19. Bxc4 {[%clk
0:02:39.9]} 19... Ne4 {[%clk 0:02:26.1]} 20. Rdd1 {[%clk 0:02:39.4]} 20... Bb5
{[%clk 0:01:36.3]} 21. Ba2 {[%clk 0:02:38.5]} 21... Rab8 {[%clk 0:01:07.5]} 22.
f3 {[%clk 0:02:37.5]} 22... Nf6 {[%clk 0:00:59.4]} 23. e4 {[%clk 0:02:33.2]}
23... f4 {[%clk 0:00:59.2]} 24. Be1 {[%clk 0:02:31.1]} 24... Qd7 {[%clk
0:00:51.3]} 25. h4 {[%clk 0:02:30.9]} 25... Kg7 {[%clk 0:00:45.9]} 26. hxg5
{[%clk 0:02:29.1]} 26... hxg5 {[%clk 0:00:46.8]} 27. e5 {[%clk 0:02:29.3]} 27...
Rh8 {[%clk 0:00:19.2]} 28. exf6+ {[%clk 0:02:26.6]} 28... Kxf6 {[%clk
0:00:20.1]} 29. Bc3 {[%clk 0:02:11.7]} 29... d5 {[%clk 0:00:18]} 30. Bb1 {[%clk
0:02:07.3]} 30... Qf7 {[%clk 0:00:14.3]} 31. Bb4 {[%clk 0:02:06.6]} 31... c6
{[%clk 0:00:12.9]} 32. Bd6 {[%clk 0:02:05.4]} 32... Rxh1 {[%clk 0:00:07.9]} 33.
Rxh1 {[%clk 0:02:06.3]} 33... Rd8 {[%clk 0:00:08.1]} 34. Rh6+ {[%clk 0:02:05.1]}
34... Kg7 {[%clk 0:00:06.3]} 35. Qh7# {[%clk 0:02:05]} 1-0

[Event "*** Titled Tuesday Blitz"]
[Site "Chess.com"]
[Date "2020.05.19"]
[Round "5"]
[White "SubrotaBiswas"]
[Black "Kapibara_Warri0r"]
[Result "1-0"]
[WhiteElo "2376"]
[BlackElo "2084"]
[TimeControl "180+1"]
[EndTime "12:55:20 PDT"]
[Termination "SubrotaBiswas won on time"]

1. e4 {[%clk 0:02:58.4]} 1... e5 {[%clk 0:02:59.5]} 2. Nf3 {[%clk 0:02:57.9]}
2... Nc6 {[%clk 0:02:59.7]} 3. Bb5 {[%clk 0:02:58.3]} 3... a6 {[%clk 0:02:59.7]}
4. Ba4 {[%clk 0:02:58.7]} 4... d6 {[%clk 0:02:58.7]} 5. d4 {[%clk 0:02:57.4]}
5... exd4 {[%clk 0:02:58.6]} 6. Nxd4 {[%clk 0:02:56.5]} 6... Bd7 {[%clk
0:02:56.4]} 7. O-O {[%clk 0:02:56.3]} 7... g6 {[%clk 0:02:48.7]} 8. Nxc6 {[%clk
0:02:50.4]} 8... bxc6 {[%clk 0:02:45.2]} 9. Qd4 {[%clk 0:02:47.9]} 9... Qf6
{[%clk 0:02:43.3]} 10. Qc4 {[%clk 0:02:43.1]} 10... Ne7 {[%clk 0:02:35.2]} 11.
Bd2 {[%clk 0:02:39.8]} 11... Qe6 {[%clk 0:02:08.5]} 12. Qd4 {[%clk 0:02:37]}
12... Rg8 {[%clk 0:02:03]} 13. Bb3 {[%clk 0:02:33.3]} 13... Qe5 {[%clk
0:01:58.7]} 14. Qe3 {[%clk 0:02:32.4]} 14... d5 {[%clk 0:01:29.2]} 15. Bc3
{[%clk 0:02:28.7]} 15... Qe6 {[%clk 0:01:18.5]} 16. Nd2 {[%clk 0:02:28.1]} 16...
f5 {[%clk 0:00:52.9]} 17. f3 {[%clk 0:02:03.2]} 17... g5 {[%clk 0:00:26.2]} 18.
Rae1 {[%clk 0:01:59.7]} 18... f4 {[%clk 0:00:25.9]} 19. Qd3 {[%clk 0:01:56.9]}
19... Qd6 {[%clk 0:00:17.9]} 20. exd5 {[%clk 0:01:54.4]} 20... cxd5 {[%clk
0:00:17.9]} 21. Bxd5 {[%clk 0:01:51]} 21... Bb5 {[%clk 0:00:14.9]} 22. Nc4
{[%clk 0:01:45.1]} 22... Bxc4 {[%clk 0:00:14.3]} 23. Qxc4 {[%clk 0:01:44.7]} 1-0

[Event "*** Titled Tuesday Blitz"]
[Site "Chess.com"]
[Date "2020.05.19"]
[Round "5"]
[White "talaicito"]
[Black "Kaua18"]
[Result "1-0"]
[WhiteElo "2171"]
[BlackElo "2314"]
[TimeControl "180+1"]
[EndTime "12:55:27 PDT"]
[Termination "talaicito won by checkmate"]

1. d4 {[%clk 0:03:00.9]} 1... Nf6 {[%clk 0:01:42.6]} 2. Nc3 {[%clk 0:02:59.9]}
2... d5 {[%clk 0:01:42.1]} 3. Bf4 {[%clk 0:02:59.6]} 3... e6 {[%clk 0:01:41.3]}
4. e3 {[%clk 0:02:59.6]} 4... Bd6 {[%clk 0:01:40.4]} 5. Nf3 {[%clk 0:02:59.6]}
5... c5 {[%clk 0:01:39.7]} 6. dxc5 {[%clk 0:02:51.3]} 6... Bxc5 {[%clk 0:01:37]}
7. Bd3 {[%clk 0:02:51.9]} 7... Nc6 {[%clk 0:01:36.5]} 8. O-O {[%clk 0:02:50.9]}
8... O-O {[%clk 0:01:36]} 9. e4 {[%clk 0:02:50.9]} 9... d4 {[%clk 0:01:34.9]}
10. Na4 {[%clk 0:02:50.6]} 10... b6 {[%clk 0:01:32.8]} 11. Qe2 {[%clk
0:02:15.5]} 11... a6 {[%clk 0:01:29.1]} 12. Nxc5 {[%clk 0:02:08.2]} 12... bxc5
{[%clk 0:01:28.9]} 13. e5 {[%clk 0:02:08.2]} 13... Nd5 {[%clk 0:01:28.3]} 14.
Qe4 {[%clk 0:02:08.2]} 14... g6 {[%clk 0:01:28.5]} 15. Bg5 {[%clk 0:01:52.1]}
15... Qc7 {[%clk 0:01:25.6]} 16. Rfe1 {[%clk 0:01:46.2]} 16... Ncb4 {[%clk
0:01:25.4]} 17. Qh4 {[%clk 0:01:42.2]} 17... Nxd3 {[%clk 0:01:24.8]} 18. cxd3
{[%clk 0:01:41.6]} 18... h5 {[%clk 0:00:42.9]} 19. g4 {[%clk 0:01:35.4]} 19...
Kg7 {[%clk 0:00:34.5]} 20. Bf6+ {[%clk 0:01:22.3]} 20... Nxf6 {[%clk 0:00:34.1]}
21. exf6+ {[%clk 0:01:23.2]} 21... Kh6 {[%clk 0:00:16.1]} 22. Re5 {[%clk
0:01:11.7]} 22... Rh8 {[%clk 0:00:14.3]} 23. Rxh5+ {[%clk 0:01:10.7]} 23... gxh5
{[%clk 0:00:12.6]} 24. Qxh5# {[%clk 0:01:11.6]} 1-0

[Event "*** Titled Tuesday Blitz"]
[Site "Chess.com"]
[Date "2020.05.19"]
[Round "5"]
[White "Volodar_Murzin"]
[Black "RestartingChess"]
[Result "1-0"]
[WhiteElo "2752"]
[BlackElo "2555"]
[TimeControl "180+1"]
[EndTime "12:55:32 PDT"]
[Termination "Volodar_Murzin won by checkmate"]

1. d4 {[%clk 0:03:00.9]} 1... Nf6 {[%clk 0:02:59]} 2. Nf3 {[%clk 0:03:01.5]}
2... g6 {[%clk 0:02:58.6]} 3. Bg5 {[%clk 0:03:00.7]} 3... Bg7 {[%clk 0:02:58.7]}
4. Nbd2 {[%clk 0:02:58.7]} 4... O-O {[%clk 0:02:58.8]} 5. e3 {[%clk 0:02:58.2]}
5... d5 {[%clk 0:02:59]} 6. c3 {[%clk 0:02:57.8]} 6... c5 {[%clk 0:02:58.8]} 7.
Bd3 {[%clk 0:02:57.7]} 7... Nc6 {[%clk 0:02:57.6]} 8. O-O {[%clk 0:02:57.5]}
8... h6 {[%clk 0:02:54.8]} 9. Bh4 {[%clk 0:02:56.1]} 9... g5 {[%clk 0:02:55.4]}
10. Bg3 {[%clk 0:02:55.7]} 10... Bg4 {[%clk 0:02:54.1]} 11. h3 {[%clk
0:02:54.5]} 11... Bh5 {[%clk 0:02:54.1]} 12. Be2 {[%clk 0:02:48.8]} 12... cxd4
{[%clk 0:02:42.9]} 13. exd4 {[%clk 0:02:44.8]} 13... Ne4 {[%clk 0:02:38.5]} 14.
Bh2 {[%clk 0:02:39.8]} 14... f5 {[%clk 0:02:33.4]} 15. Re1 {[%clk 0:02:39.5]}
15... e6 {[%clk 0:02:17.6]} 16. Qb3 {[%clk 0:02:35.2]} 16... g4 {[%clk
0:02:01.3]} 17. Nxe4 {[%clk 0:02:23.3]} 17... gxf3 {[%clk 0:01:57.9]} 18. Ng3
{[%clk 0:02:20.2]} 18... fxe2 {[%clk 0:01:31.5]} 19. Nxh5 {[%clk 0:02:08.5]}
19... Qb6 {[%clk 0:01:14.7]} 20. Rxe2 {[%clk 0:02:07]} 20... Qxb3 {[%clk
0:00:56.7]} 21. axb3 {[%clk 0:02:07.9]} 21... Bxd4 {[%clk 0:00:57.6]} 22. Rxe6
{[%clk 0:01:57.2]} 22... Bb6 {[%clk 0:00:56.3]} 23. Rxh6 {[%clk 0:01:54.5]}
23... Rfe8 {[%clk 0:00:37.9]} 24. Nf6+ {[%clk 0:01:47.5]} 24... Kg7 {[%clk
0:00:38.1]} 25. Nxe8+ {[%clk 0:01:48.4]} 25... Kxh6 {[%clk 0:00:39]} 26. Nd6
{[%clk 0:01:48.6]} 26... Kg5 {[%clk 0:00:36]} 27. Nxb7 {[%clk 0:01:46.3]} 27...
Re8 {[%clk 0:00:36.3]} 28. Kf1 {[%clk 0:01:44.4]} 28... f4 {[%clk 0:00:35.1]}
29. Rd1 {[%clk 0:01:41.6]} 29... d4 {[%clk 0:00:32]} 30. Nd6 {[%clk 0:01:41]}
30... Re6 {[%clk 0:00:28.7]} 31. Nc4 {[%clk 0:01:38.5]} 31... dxc3 {[%clk
0:00:19.7]} 32. bxc3 {[%clk 0:01:39.4]} 32... Na5 {[%clk 0:00:20.2]} 33. Nxa5
{[%clk 0:01:38.5]} 33... Bxa5 {[%clk 0:00:20.3]} 34. Rd5+ {[%clk 0:01:38.3]}
34... Kh4 {[%clk 0:00:19.1]} 35. Bxf4 {[%clk 0:01:32.5]} 35... Bxc3 {[%clk
0:00:15.8]} 36. Bg3# {[%clk 0:01:32.3]} 1-0

[Event "*** Titled Tuesday Blitz"]
[Site "Chess.com"]
[Date "2020.05.19"]
[Round "5"]
[White "THE_PLAYER6"]
[Black "MaxLeto"]
[Result "1-0"]
[WhiteElo "2506"]
[BlackElo "2331"]
[TimeControl "180+1"]
[EndTime "12:55:32 PDT"]
[Termination "THE_PLAYER6 won by checkmate"]

1. d4 {[%clk 0:03:00.9]} 1... Nf6 {[%clk 0:02:59.3]} 2. c4 {[%clk 0:02:59.7]}
2... g6 {[%clk 0:02:54.5]} 3. Nc3 {[%clk 0:02:58.6]} 3... Bg7 {[%clk 0:02:54.9]}
4. e4 {[%clk 0:02:58.4]} 4... d6 {[%clk 0:02:55.2]} 5. Be2 {[%clk 0:02:59]} 5...
e5 {[%clk 0:02:51.5]} 6. d5 {[%clk 0:02:45.5]} 6... a5 {[%clk 0:02:49.5]} 7. Be3
{[%clk 0:02:25.3]} 7... Na6 {[%clk 0:02:46.7]} 8. g4 {[%clk 0:02:20.3]} 8... Nc5
{[%clk 0:02:37.8]} 9. f3 {[%clk 0:02:19.6]} 9... O-O {[%clk 0:02:30.5]} 10. h4
{[%clk 0:02:16.6]} 10... Ne8 {[%clk 0:02:19.6]} 11. h5 {[%clk 0:02:13.8]} 11...
f5 {[%clk 0:02:20]} 12. hxg6 {[%clk 0:02:12.6]} 12... hxg6 {[%clk 0:02:20.9]}
13. gxf5 {[%clk 0:02:13]} 13... gxf5 {[%clk 0:02:21.8]} 14. exf5 {[%clk
0:02:13.4]} 14... Bxf5 {[%clk 0:02:19.4]} 15. Qd2 {[%clk 0:02:13.8]} 15... a4
{[%clk 0:01:54.3]} 16. Nh3 {[%clk 0:02:12.3]} 16... Qh4+ {[%clk 0:01:42.6]} 17.
Nf2 {[%clk 0:02:06.5]} 17... Qf6 {[%clk 0:01:31.5]} 18. O-O-O {[%clk 0:02:00.6]}
18... a3 {[%clk 0:01:09.4]} 19. b3 {[%clk 0:01:55.2]} 19... e4 {[%clk
0:01:07.9]} 20. Rdg1 {[%clk 0:01:45.5]} 20... exf3 {[%clk 0:01:00.5]} 21. Bd4
{[%clk 0:01:40.2]} 21... Qe7 {[%clk 0:00:20.7]} 22. Bxf3 {[%clk 0:01:26.8]}
22... Rf7 {[%clk 0:00:14.8]} 23. Qh6 {[%clk 0:01:24]} 23... Kf8 {[%clk
0:00:01.9]} 24. Qh8+ {[%clk 0:01:22.5]} 24... Bxh8 {[%clk 0:00:01.9]} 25. Rxh8#
{[%clk 0:01:23.4]} 1-0

[Event "*** Titled Tuesday Blitz"]
[Site "Chess.com"]
[Date "2020.05.19"]
[Round "5"]
[White "cukin84"]
[Black "crossingthestreet"]
[Result "1-0"]
[WhiteElo "2147"]
[BlackElo "2306"]
[TimeControl "180+1"]
[EndTime "12:55:39 PDT"]
[Termination "cukin84 won by checkmate"]

1. e4 {[%clk 0:03:00.9]} 1... e6 {[%clk 0:01:36.5]} 2. d4 {[%clk 0:02:59]} 2...
d5 {[%clk 0:01:36.8]} 3. Nc3 {[%clk 0:02:58.3]} 3... Nf6 {[%clk 0:01:35.8]} 4.
e5 {[%clk 0:02:58.4]} 4... Nfd7 {[%clk 0:01:34.5]} 5. f4 {[%clk 0:02:58.6]} 5...
c5 {[%clk 0:01:22.7]} 6. Nf3 {[%clk 0:02:58]} 6... Nc6 {[%clk 0:01:22.9]} 7. Be3
{[%clk 0:02:57.7]} 7... Be7 {[%clk 0:01:23.2]} 8. Qd2 {[%clk 0:02:56.6]} 8...
O-O {[%clk 0:01:23.7]} 9. Be2 {[%clk 0:02:47.6]} 9... a6 {[%clk 0:01:23.4]} 10.
O-O {[%clk 0:02:46.7]} 10... b5 {[%clk 0:01:24]} 11. Nd1 {[%clk 0:02:46.1]}
11... Qb6 {[%clk 0:01:23.4]} 12. c3 {[%clk 0:02:45.8]} 12... a5 {[%clk
0:01:23.6]} 13. Bd3 {[%clk 0:02:36.6]} 13... b4 {[%clk 0:01:23.5]} 14. Qe2
{[%clk 0:02:28.1]} 14... Ba6 {[%clk 0:01:23.3]} 15. Ng5 {[%clk 0:02:23.4]} 15...
h6 {[%clk 0:01:08.6]} 16. Nh3 {[%clk 0:02:17.2]} 16... Bxd3 {[%clk 0:01:06.8]}
17. Qxd3 {[%clk 0:02:16.8]} 17... Qa6 {[%clk 0:01:04.1]} 18. Qc2 {[%clk
0:02:13.8]} 18... Rac8 {[%clk 0:01:00.1]} 19. Qf2 {[%clk 0:02:10]} 19... bxc3
{[%clk 0:00:53.9]} 20. bxc3 {[%clk 0:02:09.3]} 20... cxd4 {[%clk 0:00:54.3]} 21.
cxd4 {[%clk 0:02:09.5]} 21... Nb4 {[%clk 0:00:55]} 22. f5 {[%clk 0:01:57.5]}
22... Nc2 {[%clk 0:00:25.5]} 23. Qg3 {[%clk 0:01:56.6]} 23... Nxe3 {[%clk
0:00:17.8]} 24. Nxe3 {[%clk 0:01:56]} 24... f6 {[%clk 0:00:18]} 25. Ng4 {[%clk
0:01:51.4]} 25... Kh7 {[%clk 0:00:14.2]} 26. Nxh6 {[%clk 0:01:46.2]} 26... gxh6
{[%clk 0:00:13.2]} 27. Qg6+ {[%clk 0:01:45.6]} 27... Kh8 {[%clk 0:00:13.7]} 28.
Qxh6+ {[%clk 0:01:44.6]} 28... Kg8 {[%clk 0:00:14.2]} 29. Qg6+ {[%clk
0:01:44.7]} 29... Kh8 {[%clk 0:00:14.1]} 30. Rf3 {[%clk 0:01:30.9]} 30... fxe5
{[%clk 0:00:13.1]} 31. Ng5 {[%clk 0:01:28.7]} 31... Bxg5 {[%clk 0:00:05.4]} 32.
Rh3+ {[%clk 0:01:28.4]} 32... Bh6 {[%clk 0:00:05.9]} 33. Rxh6# {[%clk
0:01:28.3]} 1-0